[Event "Early-Titled-Tuesday-Blitz-January-23-2024"]
[Site "Chess.com"]
[Date "2024.01.23"]
[Round "8"]
[White "JiiHart"]
[Black "Boninknights"]
[Result "0-1"]
[WhiteElo "2148"]
[BlackElo "2344"]
[TimeControl "180+1"]
[EndTime "9:26:55 PST"]
[Termination "Boninknights won by checkmate"]

1. e4 {[%clk 0:03:00.9]} 1... c6 {[%clk 0:02:44]} 2. d4 {[%clk 0:02:59.9]} 2...
a6 {[%clk 0:02:43]} 3. Nd2 {[%clk 0:02:58.5]} 3... d5 {[%clk 0:02:41.6]} 4. Ngf3
{[%clk 0:02:56.9]} 4... Bg4 {[%clk 0:02:39.9]} 5. c3 {[%clk 0:02:44.6]} 5... e6
{[%clk 0:02:37.8]} 6. Bd3 {[%clk 0:02:43.7]} 6... Nf6 {[%clk 0:02:35.6]} 7. h3
{[%clk 0:02:40.5]} 7... Bh5 {[%clk 0:02:34.3]} 8. Qe2 {[%clk 0:02:38.9]} 8...
Be7 {[%clk 0:02:32]} 9. e5 {[%clk 0:02:32.4]} 9... Nfd7 {[%clk 0:02:29.5]} 10.
Nf1 {[%clk 0:02:20.9]} 10... c5 {[%clk 0:02:27.1]} 11. Be3 {[%clk 0:02:16.3]}
11... Nc6 {[%clk 0:02:25.3]} 12. Ng3 {[%clk 0:02:03.7]} 12... Bg6 {[%clk
0:02:21.1]} 13. O-O {[%clk 0:02:02.1]} 13... Bxd3 {[%clk 0:02:15.5]} 14. Qxd3
{[%clk 0:02:02.2]} 14... O-O {[%clk 0:02:14.1]} 15. Rfe1 {[%clk 0:01:59]} 15...
b5 {[%clk 0:02:12.7]} 16. Nh2 {[%clk 0:01:55.7]} 16... Qb6 {[%clk 0:02:07.3]}
17. f4 {[%clk 0:01:50.3]} 17... f6 {[%clk 0:02:00.2]} 18. Nf3 {[%clk 0:01:21.7]}
18... fxe5 {[%clk 0:01:56]} 19. fxe5 {[%clk 0:01:18.7]} 19... cxd4 {[%clk
0:01:52.3]} 20. cxd4 {[%clk 0:01:18.2]} 20... Rxf3 {[%clk 0:01:38]} 21. gxf3
{[%clk 0:01:15.3]} 21... Bh4 {[%clk 0:01:37]} 22. Kh2 {[%clk 0:01:02.3]} 22...
Rf8 {[%clk 0:01:30.3]} 23. Rf1 {[%clk 0:00:56.9]} 23... Qd8 {[%clk 0:01:21.7]}
24. Rac1 {[%clk 0:00:51.2]} 24... Ne7 {[%clk 0:01:15.5]} 25. Bf2 {[%clk
0:00:29.2]} 25... Ng6 {[%clk 0:01:11.3]} 26. Ne2 {[%clk 0:00:15.6]} 26... Bxf2
{[%clk 0:01:08.4]} 27. Rxf2 {[%clk 0:00:16.5]} 27... Qh4 {[%clk 0:01:06.3]} 28.
Rg2 {[%clk 0:00:14.4]} 28... Ngxe5 {[%clk 0:01:02.3]} 29. dxe5 {[%clk 0:00:14]}
29... Nxe5 {[%clk 0:01:02.2]} 30. Qd4 {[%clk 0:00:11.3]} 30... Nxf3+ {[%clk
0:01:01.9]} 31. Kh1 {[%clk 0:00:11.3]} 31... Qxh3+ {[%clk 0:01:02]} 32. Rh2
{[%clk 0:00:10.1]} 32... Qxh2# {[%clk 0:01:01.7]} 0-1

[Event "Early-Titled-Tuesday-Blitz-January-23-2024"]
[Site "Chess.com"]
[Date "2024.01.23"]
[Round "8"]
[White "Reality-Stone"]
[Black "Pliukha_Mikhail"]
[Result "0-1"]
[WhiteElo "2624"]
[BlackElo "2750"]
[TimeControl "180+1"]
[EndTime "9:27:01 PST"]
[Termination "Pliukha_Mikhail won by resignation"]

1. d4 {[%clk 0:03:00.9]} 1... Nf6 {[%clk 0:03:00.2]} 2. c4 {[%clk 0:02:58.4]}
2... e6 {[%clk 0:03:01.1]} 3. Nf3 {[%clk 0:02:58.6]} 3... d5 {[%clk 0:03:02]} 4.
g3 {[%clk 0:02:58.4]} 4... c5 {[%clk 0:03:02.4]} 5. cxd5 {[%clk 0:02:57.8]} 5...
exd5 {[%clk 0:03:03.3]} 6. Bg2 {[%clk 0:02:56.9]} 6... Nc6 {[%clk 0:03:04.2]} 7.
O-O {[%clk 0:02:56.3]} 7... cxd4 {[%clk 0:03:05.1]} 8. Nxd4 {[%clk 0:02:55.8]}
8... Bc5 {[%clk 0:03:06]} 9. Nb3 {[%clk 0:02:49.2]} 9... Bb6 {[%clk 0:03:06.3]}
10. Nc3 {[%clk 0:02:48.7]} 10... d4 {[%clk 0:03:06.9]} 11. Na4 {[%clk
0:02:46.1]} 11... O-O {[%clk 0:03:07.2]} 12. Bg5 {[%clk 0:02:44.8]} 12... h6
{[%clk 0:03:07.2]} 13. Bxf6 {[%clk 0:02:41.9]} 13... Qxf6 {[%clk 0:03:08.1]} 14.
Nxb6 {[%clk 0:02:39.7]} 14... axb6 {[%clk 0:03:09]} 15. Bxc6 {[%clk 0:02:24.4]}
15... bxc6 {[%clk 0:03:09.9]} 16. Qxd4 {[%clk 0:02:24.1]} 16... Qd8 {[%clk
0:03:07.1]} 17. Rfd1 {[%clk 0:02:21.9]} 17... Qxd4 {[%clk 0:03:07.1]} 18. Nxd4
{[%clk 0:02:22.8]} 18... c5 {[%clk 0:03:07.2]} 19. Nb5 {[%clk 0:02:15.6]} 19...
Ra5 {[%clk 0:02:52.8]} 20. Nc3 {[%clk 0:02:08.5]} 20... b5 {[%clk 0:02:53]} 21.
Rd5 {[%clk 0:02:04.8]} 21... b4 {[%clk 0:02:46.8]} 22. Ne4 {[%clk 0:02:04.2]}
22... Re8 {[%clk 0:02:45.7]} 23. Nd6 {[%clk 0:01:07.7]} 23... Be6 {[%clk
0:02:31.9]} 24. Rxc5 {[%clk 0:01:04.7]} 24... Rxc5 {[%clk 0:02:28]} 25. Nxe8
{[%clk 0:01:04.6]} 25... Rc2 {[%clk 0:01:54.1]} 26. a4 {[%clk 0:00:43.9]} 26...
Rxb2 {[%clk 0:01:51]} 27. a5 {[%clk 0:00:43.5]} 27... b3 {[%clk 0:01:40.9]} 28.
Nc7 {[%clk 0:00:40.8]} 28... Ra2 {[%clk 0:01:36.6]} 29. Rb1 {[%clk 0:00:39.7]}
29... b2 {[%clk 0:01:31.2]} 30. Kg2 {[%clk 0:00:14.6]} 30... Bf5 {[%clk
0:01:27.1]} 31. Rxb2 {[%clk 0:00:07.8]} 31... Rxb2 {[%clk 0:01:28]} 32. Kf3
{[%clk 0:00:05.2]} 32... Ra2 {[%clk 0:01:26.7]} 33. a6 {[%clk 0:00:04.5]} 33...
Bc8 {[%clk 0:01:27.1]} 34. Nd5 {[%clk 0:00:03.6]} 34... Bxa6 {[%clk 0:01:24.2]}
35. Nb4 {[%clk 0:00:03.1]} 35... Ra3+ {[%clk 0:01:24.6]} 36. e3 {[%clk
0:00:02.6]} 36... Bb7+ {[%clk 0:01:25.1]} 37. Kf4 {[%clk 0:00:03.1]} 37... Rb3
{[%clk 0:01:24.6]} 0-1

[Event "Early-Titled-Tuesday-Blitz-January-23-2024"]
[Site "Chess.com"]
[Date "2024.01.23"]
[Round "8"]
[White "Natalya_Buksa"]
[Black "supereagles1201"]
[Result "1-0"]
[WhiteElo "2598"]
[BlackElo "2388"]
[TimeControl "180+1"]
[EndTime "9:27:02 PST"]
[Termination "Natalya_Buksa won by resignation"]

1. d4 {[%clk 0:02:58.7]} 1... d5 {[%clk 0:02:59.9]} 2. Nc3 {[%clk 0:02:58.9]}
2... Nf6 {[%clk 0:02:59]} 3. Bf4 {[%clk 0:02:59.6]} 3... e6 {[%clk 0:02:59.3]}
4. e3 {[%clk 0:02:59.5]} 4... a6 {[%clk 0:02:57.3]} 5. Bd3 {[%clk 0:02:57.5]}
5... Bb4 {[%clk 0:02:56.5]} 6. Ne2 {[%clk 0:02:57.4]} 6... c5 {[%clk 0:02:50.1]}
7. dxc5 {[%clk 0:02:57.2]} 7... Nbd7 {[%clk 0:02:50]} 8. Bg5 {[%clk 0:02:46]}
8... Nxc5 {[%clk 0:02:47.2]} 9. O-O {[%clk 0:02:46.1]} 9... h6 {[%clk
0:02:44.4]} 10. Bh4 {[%clk 0:02:45.4]} 10... O-O {[%clk 0:02:42.7]} 11. a3
{[%clk 0:02:41.7]} 11... Nxd3 {[%clk 0:02:37]} 12. cxd3 {[%clk 0:02:37.7]} 12...
Be7 {[%clk 0:02:36.5]} 13. d4 {[%clk 0:02:37.7]} 13... Nh5 {[%clk 0:02:30.5]}
14. Bxe7 {[%clk 0:02:34.4]} 14... Qxe7 {[%clk 0:02:31.4]} 15. Na4 {[%clk
0:02:34.5]} 15... Bd7 {[%clk 0:02:30]} 16. Nc5 {[%clk 0:02:32.9]} 16... Bb5
{[%clk 0:02:29.1]} 17. Re1 {[%clk 0:02:31.6]} 17... Bxe2 {[%clk 0:02:23.9]} 18.
Qxe2 {[%clk 0:02:31.8]} 18... Nf6 {[%clk 0:02:23.8]} 19. Rac1 {[%clk 0:02:32.5]}
19... Rfc8 {[%clk 0:02:22.8]} 20. h3 {[%clk 0:02:27.3]} 20... Rc7 {[%clk
0:02:22.8]} 21. Rc2 {[%clk 0:02:19]} 21... Rac8 {[%clk 0:02:21.9]} 22. Rec1
{[%clk 0:02:19.5]} 22... Qd6 {[%clk 0:02:16.3]} 23. Nxb7 {[%clk 0:01:57.2]}
23... Rxc2 {[%clk 0:02:12.1]} 24. Rxc2 {[%clk 0:01:57.3]} 24... Rxc2 {[%clk
0:02:03.9]} 25. Qxc2 {[%clk 0:01:57.7]} 25... Qb6 {[%clk 0:01:58.5]} 26. Nc5
{[%clk 0:01:56.7]} 26... g6 {[%clk 0:01:52.6]} 27. b4 {[%clk 0:01:55.9]} 27...
Kg7 {[%clk 0:01:49.3]} 28. Qc3 {[%clk 0:01:54.8]} 28... Qb5 {[%clk 0:01:48.2]}
29. Qd3 {[%clk 0:01:49.5]} 29... Ne8 {[%clk 0:01:37.2]} 30. Qxb5 {[%clk
0:01:30.3]} 30... axb5 {[%clk 0:01:38.1]} 31. a4 {[%clk 0:01:30.9]} 31... bxa4
{[%clk 0:01:35.2]} 32. Nxa4 {[%clk 0:01:31.8]} 32... Nd6 {[%clk 0:01:35.2]} 33.
Nc3 {[%clk 0:01:27.6]} 33... Kf6 {[%clk 0:01:33.2]} 34. Kf1 {[%clk 0:01:28.1]}
34... Ke7 {[%clk 0:01:32.9]} 35. Ke2 {[%clk 0:01:26.1]} 35... Kd7 {[%clk
0:01:32.9]} 36. Kd3 {[%clk 0:01:19.3]} 36... Kc6 {[%clk 0:01:31.7]} 37. Kc2
{[%clk 0:01:19.8]} 37... h5 {[%clk 0:01:25.9]} 38. Kb3 {[%clk 0:01:19.2]} 38...
Nf5 {[%clk 0:01:17.6]} 39. b5+ {[%clk 0:01:15.5]} 39... Kb6 {[%clk 0:01:12.5]}
40. Kb4 {[%clk 0:01:14.7]} 40... Nh4 {[%clk 0:01:11.1]} 41. g3 {[%clk
0:01:13.8]} 41... Nf3 {[%clk 0:01:08.8]} 42. Na4+ {[%clk 0:01:08.2]} 42... Kc7
{[%clk 0:01:07.9]} 43. b6+ {[%clk 0:01:03.9]} 43... Kc6 {[%clk 0:01:02.1]} 44.
Ka5 {[%clk 0:01:04]} 44... Nd2 {[%clk 0:00:57]} 45. Ka6 {[%clk 0:01:03.1]} 45...
Nc4 {[%clk 0:00:50.3]} 46. b7 {[%clk 0:01:02.8]} 46... Kc7 {[%clk 0:00:39.7]}
47. Ka7 {[%clk 0:01:01.2]} 1-0

[Event "Early-Titled-Tuesday-Blitz-January-23-2024"]
[Site "Chess.com"]
[Date "2024.01.23"]
[Round "8"]
[White "LastHeroJr"]
[Black "NM_Antelacus"]
[Result "0-1"]
[WhiteElo "2437"]
[BlackElo "2220"]
[TimeControl "180+1"]
[EndTime "9:27:04 PST"]
[Termination "NM_Antelacus won by resignation"]

1. e4 {[%clk 0:02:47.9]} 1... c5 {[%clk 0:02:59.6]} 2. Nc3 {[%clk 0:02:48.8]}
2... Nc6 {[%clk 0:02:59.3]} 3. g3 {[%clk 0:02:49.7]} 3... g6 {[%clk 0:02:59.7]}
4. Bg2 {[%clk 0:02:50.6]} 4... Bg7 {[%clk 0:03:00.2]} 5. d3 {[%clk 0:02:51.5]}
5... d6 {[%clk 0:02:59.7]} 6. f4 {[%clk 0:02:52.4]} 6... e6 {[%clk 0:02:59.2]}
7. Nf3 {[%clk 0:02:52.2]} 7... Nge7 {[%clk 0:02:59.4]} 8. O-O {[%clk 0:02:48.4]}
8... O-O {[%clk 0:02:59.3]} 9. Be3 {[%clk 0:02:46.1]} 9... Nd4 {[%clk
0:02:57.8]} 10. Rb1 {[%clk 0:02:46.1]} 10... Rb8 {[%clk 0:02:56.1]} 11. Ne2
{[%clk 0:02:44.7]} 11... Nec6 {[%clk 0:02:54.2]} 12. c3 {[%clk 0:02:40.6]} 12...
Nxf3+ {[%clk 0:02:53.8]} 13. Bxf3 {[%clk 0:02:40.4]} 13... b5 {[%clk 0:02:49.8]}
14. e5 {[%clk 0:02:38.1]} 14... Qc7 {[%clk 0:02:42.2]} 15. d4 {[%clk 0:02:37.4]}
15... cxd4 {[%clk 0:02:37.4]} 16. cxd4 {[%clk 0:02:31.7]} 16... d5 {[%clk
0:02:34]} 17. Rc1 {[%clk 0:02:30.8]} 17... Qb6 {[%clk 0:02:30.7]} 18. g4 {[%clk
0:02:27]} 18... a5 {[%clk 0:02:27.6]} 19. Ng3 {[%clk 0:02:26.8]} 19... Ba6
{[%clk 0:02:22.1]} 20. Rf2 {[%clk 0:02:23.5]} 20... Rbc8 {[%clk 0:02:17]} 21. h4
{[%clk 0:02:22.1]} 21... Nb4 {[%clk 0:02:13.2]} 22. Rxc8 {[%clk 0:02:21.1]}
22... Rxc8 {[%clk 0:02:12]} 23. a3 {[%clk 0:02:21.7]} 23... Nc6 {[%clk
0:02:08.9]} 24. Rc2 {[%clk 0:02:18.5]} 24... Ne7 {[%clk 0:02:01.2]} 25. Rxc8+
{[%clk 0:02:18]} 25... Bxc8 {[%clk 0:01:58.9]} 26. Qd2 {[%clk 0:02:14.5]} 26...
b4 {[%clk 0:01:56.4]} 27. axb4 {[%clk 0:02:14]} 27... axb4 {[%clk 0:01:55.8]}
28. h5 {[%clk 0:02:14.2]} 28... Ba6 {[%clk 0:01:54.4]} 29. Kf2 {[%clk
0:02:12.6]} 29... Nc6 {[%clk 0:01:46.4]} 30. f5 {[%clk 0:02:11]} 30... Na5
{[%clk 0:01:45.3]} 31. f6 {[%clk 0:02:10.6]} 31... Bf8 {[%clk 0:01:44.9]} 32.
Be2 {[%clk 0:02:08]} 32... Bxe2 {[%clk 0:01:39]} 33. Nxe2 {[%clk 0:02:07.4]}
33... Nc4 {[%clk 0:01:37.5]} 34. Qc2 {[%clk 0:02:07.6]} 34... b3 {[%clk
0:01:15.5]} 35. Qc1 {[%clk 0:01:59.8]} 35... Bb4 {[%clk 0:01:11.3]} 36. hxg6
{[%clk 0:01:53.9]} 36... hxg6 {[%clk 0:01:10.3]} 37. Kf3 {[%clk 0:01:49.5]}
37... Qa5 {[%clk 0:01:03.6]} 38. Bf2 {[%clk 0:01:38.6]} 38... Bd2 {[%clk
0:00:59.9]} 39. Qh1 {[%clk 0:01:32.5]} 39... Qa2 {[%clk 0:00:42.5]} 40. Nf4
{[%clk 0:01:25.1]} 40... Bxf4 {[%clk 0:00:26.4]} 41. Kxf4 {[%clk 0:01:24.9]}
41... Qxb2 {[%clk 0:00:26.6]} 42. Be1 {[%clk 0:01:17.3]} 42... Qc1+ {[%clk
0:00:25.8]} 43. Kg3 {[%clk 0:01:11.7]} 43... Qe3+ {[%clk 0:00:24.8]} 44. Kh4
{[%clk 0:01:11.4]} 44... Qh6+ {[%clk 0:00:23.4]} 0-1

[Event "Early-Titled-Tuesday-Blitz-January-23-2024"]
[Site "Chess.com"]
[Date "2024.01.23"]
[Round "8"]
[White "ViktoriyaTarasova"]
[Black "Larina_Maria"]
[Result "0-1"]
[WhiteElo "2288"]
[BlackElo "2190"]
[TimeControl "180+1"]
[EndTime "9:27:05 PST"]
[Termination "Larina_Maria won by resignation"]

1. d4 {[%clk 0:03:00.9]} 1... f5 {[%clk 0:02:59.7]} 2. c4 {[%clk 0:03:00.5]}
2... Nf6 {[%clk 0:02:59.9]} 3. g3 {[%clk 0:03:00.6]} 3... g6 {[%clk 0:03:00.1]}
4. Bg2 {[%clk 0:03:01]} 4... Bg7 {[%clk 0:03:00.6]} 5. Nf3 {[%clk 0:03:00.1]}
5... O-O {[%clk 0:03:00.8]} 6. O-O {[%clk 0:03:00]} 6... d6 {[%clk 0:03:01.4]}
7. Nc3 {[%clk 0:02:58.4]} 7... Nc6 {[%clk 0:03:01.6]} 8. b3 {[%clk 0:02:55.8]}
8... e5 {[%clk 0:03:00.3]} 9. dxe5 {[%clk 0:02:54.7]} 9... dxe5 {[%clk
0:03:01.2]} 10. e4 {[%clk 0:02:54]} 10... Nxe4 {[%clk 0:02:46.3]} 11. Nxe4
{[%clk 0:02:52.4]} 11... fxe4 {[%clk 0:02:47.2]} 12. Ng5 {[%clk 0:02:50.6]}
12... Qd4 {[%clk 0:02:36.8]} 13. Be3 {[%clk 0:02:46.3]} 13... Qxd1 {[%clk
0:02:28.9]} 14. Rfxd1 {[%clk 0:02:38.5]} 14... Nd4 {[%clk 0:02:28.9]} 15. Bxe4
{[%clk 0:02:23.7]} 15... h6 {[%clk 0:02:15]} 16. Bd5+ {[%clk 0:02:08.1]} 16...
Kh8 {[%clk 0:02:07.8]} 17. Nf7+ {[%clk 0:01:58.5]} 17... Kh7 {[%clk 0:02:04.5]}
18. Bxd4 {[%clk 0:01:08.2]} 18... exd4 {[%clk 0:02:05.4]} 19. c5 {[%clk
0:00:58.2]} 19... Bg4 {[%clk 0:01:53.3]} 20. f3 {[%clk 0:00:41.5]} 20... Bf5
{[%clk 0:01:12.3]} 21. Bxb7 {[%clk 0:00:26.5]} 21... Rab8 {[%clk 0:01:05.1]} 22.
Bd5 {[%clk 0:00:26.1]} 22... Bc2 {[%clk 0:00:59.4]} 23. Re1 {[%clk 0:00:18.7]}
23... d3 {[%clk 0:00:58]} 24. Rad1 {[%clk 0:00:07.6]} 24... Rbe8 {[%clk
0:00:55.2]} 25. Kf1 {[%clk 0:00:04.6]} 25... Bc3 {[%clk 0:00:51.6]} 26. Rxe8
{[%clk 0:00:03.9]} 26... Rxe8 {[%clk 0:00:51.9]} 27. Rc1 {[%clk 0:00:04.1]}
27... d2 {[%clk 0:00:47.6]} 0-1

[Event "Early-Titled-Tuesday-Blitz-January-23-2024"]
[Site "Chess.com"]
[Date "2024.01.23"]
[Round "8"]
[White "nihalsarin"]
[Black "abhidabhi"]
[Result "1-0"]
[WhiteElo "3187"]
[BlackElo "2932"]
[TimeControl "180+1"]
[EndTime "9:27:06 PST"]
[Termination "nihalsarin won by resignation"]

1. g4 {[%clk 0:03:00.9]} 1... d5 {[%clk 0:02:58.4]} 2. Bg2 {[%clk 0:03:00.2]}
2... c6 {[%clk 0:02:58.6]} 3. g5 {[%clk 0:02:58.2]} 3... e5 {[%clk 0:02:58.5]}
4. d4 {[%clk 0:02:57.8]} 4... Nd7 {[%clk 0:02:47.5]} 5. h4 {[%clk 0:02:55.1]}
5... Bd6 {[%clk 0:02:44.7]} 6. c4 {[%clk 0:02:53.7]} 6... dxc4 {[%clk
0:02:42.5]} 7. d5 {[%clk 0:02:53.9]} 7... cxd5 {[%clk 0:02:39.4]} 8. Qxd5 {[%clk
0:02:45]} 8... Nb6 {[%clk 0:02:38.4]} 9. Qa5 {[%clk 0:02:37.7]} 9... Ne7 {[%clk
0:02:34.7]} 10. Nc3 {[%clk 0:02:37.6]} 10... Nc6 {[%clk 0:02:34.8]} 11. Bxc6+
{[%clk 0:02:35.7]} 11... bxc6 {[%clk 0:02:35.7]} 12. Be3 {[%clk 0:02:36.5]}
12... O-O {[%clk 0:02:35]} 13. O-O-O {[%clk 0:02:36.3]} 13... Qe7 {[%clk
0:02:34]} 14. Rxd6 {[%clk 0:02:34.5]} 14... Qxd6 {[%clk 0:02:32.1]} 15. Bxb6
{[%clk 0:01:57.4]} 15... axb6 {[%clk 0:01:27.4]} 16. Qxa8 {[%clk 0:01:56.2]}
16... b5 {[%clk 0:01:26.9]} 17. Nf3 {[%clk 0:01:54.3]} 17... e4 {[%clk
0:01:10.3]} 18. Nxe4 {[%clk 0:01:50.8]} 18... Qf4+ {[%clk 0:01:02.3]} 19. Ned2
{[%clk 0:01:46]} 19... Bf5 {[%clk 0:00:45.8]} 20. Qa3 {[%clk 0:01:35.9]} 20...
Rd8 {[%clk 0:00:41.4]} 21. Rd1 {[%clk 0:01:31.1]} 21... h5 {[%clk 0:00:35]} 22.
Qe3 {[%clk 0:01:16.9]} 22... Qc7 {[%clk 0:00:30.4]} 23. Ne4 {[%clk 0:00:52.3]}
23... Ra8 {[%clk 0:00:27.8]} 24. a3 {[%clk 0:00:52.2]} 24... b4 {[%clk
0:00:27.4]} 25. axb4 {[%clk 0:00:53.1]} 25... Qe7 {[%clk 0:00:19.9]} 26. Nf6+
{[%clk 0:00:51.5]} 26... Kf8 {[%clk 0:00:16.9]} 27. Qxe7+ {[%clk 0:00:51.4]}
27... Kxe7 {[%clk 0:00:17.8]} 28. Nxh5 {[%clk 0:00:52.3]} 1-0

[Event "Early-Titled-Tuesday-Blitz-January-23-2024"]
[Site "Chess.com"]
[Date "2024.01.23"]
[Round "8"]
[White "alekroth65"]
[Black "olawsson"]
[Result "1-0"]
[WhiteElo "2345"]
[BlackElo "2159"]
[TimeControl "180+1"]
[EndTime "9:27:06 PST"]
[Termination "alekroth65 won on time"]

1. d4 {[%clk 0:03:00.9]} 1... d6 {[%clk 0:02:58.5]} 2. c4 {[%clk 0:02:58.7]}
2... g6 {[%clk 0:02:52.9]} 3. Nc3 {[%clk 0:02:58.6]} 3... Bg7 {[%clk 0:02:53.5]}
4. e4 {[%clk 0:02:56.9]} 4... Nc6 {[%clk 0:02:53.1]} 5. Nge2 {[%clk 0:02:50.7]}
5... e5 {[%clk 0:02:51.4]} 6. Be3 {[%clk 0:02:47.5]} 6... f5 {[%clk 0:02:51.7]}
7. exf5 {[%clk 0:02:40.1]} 7... gxf5 {[%clk 0:02:33.4]} 8. d5 {[%clk 0:02:38.8]}
8... Nce7 {[%clk 0:02:33.1]} 9. f4 {[%clk 0:02:29.1]} 9... Nf6 {[%clk
0:02:26.8]} 10. h3 {[%clk 0:02:21.4]} 10... O-O {[%clk 0:02:12.1]} 11. Qd2
{[%clk 0:02:20.7]} 11... Ne4 {[%clk 0:01:58.6]} 12. Nxe4 {[%clk 0:02:18.8]}
12... fxe4 {[%clk 0:01:58.6]} 13. g4 {[%clk 0:02:07.9]} 13... exf4 {[%clk
0:01:22.4]} 14. Nxf4 {[%clk 0:02:04.3]} 14... Ng6 {[%clk 0:01:22.3]} 15. Nxg6
{[%clk 0:02:03.3]} 15... hxg6 {[%clk 0:01:21.1]} 16. O-O-O {[%clk 0:02:02.9]}
16... Qh4 {[%clk 0:01:06.2]} 17. Be2 {[%clk 0:01:51.7]} 17... Bd7 {[%clk
0:00:51.6]} 18. Bg5 {[%clk 0:01:41.6]} 18... Qf2 {[%clk 0:00:35.3]} 19. Be3
{[%clk 0:01:38.7]} 19... Qh4 {[%clk 0:00:28.7]} 20. Bg5 {[%clk 0:01:33.7]} 20...
Qf2 {[%clk 0:00:28.3]} 21. Rdf1 {[%clk 0:01:31.2]} 21... Qg2 {[%clk 0:00:11.8]}
22. Rfg1 {[%clk 0:01:23.7]} 22... Qf2 {[%clk 0:00:11.3]} 23. h4 {[%clk 0:01:04]}
23... b5 {[%clk 0:00:07.2]} 24. Be3 {[%clk 0:01:00.1]} 24... Qf6 {[%clk
0:00:04.5]} 25. h5 {[%clk 0:00:48.9]} 25... bxc4 {[%clk 0:00:03.7]} 26. h6
{[%clk 0:00:47.5]} 26... Bh8 {[%clk 0:00:03.8]} 27. h7+ {[%clk 0:00:47]} 1-0

[Event "Early-Titled-Tuesday-Blitz-January-23-2024"]
[Site "Chess.com"]
[Date "2024.01.23"]
[Round "8"]
[White "Andrej2004"]
[Black "s4p0ud"]
[Result "0-1"]
[WhiteElo "2620"]
[BlackElo "2528"]
[TimeControl "180+1"]
[EndTime "9:27:12 PST"]
[Termination "s4p0ud won by resignation"]

1. Nf3 {[%clk 0:02:56.3]} 1... c5 {[%clk 0:02:59.4]} 2. c4 {[%clk 0:02:56]} 2...
Nc6 {[%clk 0:02:59.7]} 3. g3 {[%clk 0:02:55.6]} 3... d6 {[%clk 0:02:59.7]} 4.
Bg2 {[%clk 0:02:55.8]} 4... g6 {[%clk 0:02:59.9]} 5. Nc3 {[%clk 0:02:55.1]} 5...
Bg7 {[%clk 0:03:00.1]} 6. b3 {[%clk 0:02:55.8]} 6... Nf6 {[%clk 0:03:00.3]} 7.
Bb2 {[%clk 0:02:56.1]} 7... O-O {[%clk 0:03:00.6]} 8. O-O {[%clk 0:02:56.6]}
8... Bg4 {[%clk 0:02:59.8]} 9. h3 {[%clk 0:02:56.1]} 9... Bxf3 {[%clk
0:02:57.3]} 10. Bxf3 {[%clk 0:02:57]} 10... Qd7 {[%clk 0:02:50.2]} 11. Bg2
{[%clk 0:02:56.2]} 11... e6 {[%clk 0:02:09.7]} 12. g4 {[%clk 0:02:19.9]} 12...
d5 {[%clk 0:02:05]} 13. g5 {[%clk 0:02:16.5]} 13... Ne8 {[%clk 0:02:02.6]} 14.
cxd5 {[%clk 0:02:11]} 14... exd5 {[%clk 0:02:01.8]} 15. Bxd5 {[%clk 0:02:00.5]}
15... Qxh3 {[%clk 0:02:01.1]} 16. Bg2 {[%clk 0:01:58.6]} 16... Qh4 {[%clk
0:01:51.1]} 17. f4 {[%clk 0:01:39.1]} 17... Rd8 {[%clk 0:01:44.8]} 18. e3 {[%clk
0:01:27.9]} 18... Nb4 {[%clk 0:01:33.3]} 19. Rb1 {[%clk 0:01:18.2]} 19... Nd3
{[%clk 0:01:30.3]} 20. Ba1 {[%clk 0:01:18.3]} 20... Nd6 {[%clk 0:01:25.9]} 21.
Nd5 {[%clk 0:00:47.3]} 21... Nf5 {[%clk 0:01:22]} 22. Bxg7 {[%clk 0:00:41.5]}
22... Kxg7 {[%clk 0:01:19.2]} 23. Nf6 {[%clk 0:00:40.5]} 23... Ng3 {[%clk
0:01:14.3]} 24. Rf3 {[%clk 0:00:37.3]} 24... h6 {[%clk 0:01:09.2]} 25. b4 {[%clk
0:00:24.1]} 25... hxg5 {[%clk 0:00:58]} 26. fxg5 {[%clk 0:00:24]} 26... Qxg5
{[%clk 0:00:54.4]} 27. Rb3 {[%clk 0:00:21.4]} 27... c4 {[%clk 0:00:51.6]} 28.
Rxd3 {[%clk 0:00:20]} 28... cxd3 {[%clk 0:00:48.5]} 29. Qa1 {[%clk 0:00:20.1]}
29... Ne2+ {[%clk 0:00:45.6]} 30. Kf2 {[%clk 0:00:19.3]} 30... Qh4+ {[%clk
0:00:42]} 31. Kf1 {[%clk 0:00:19.3]} 31... Ng3+ {[%clk 0:00:42]} 32. Rxg3 {[%clk
0:00:19.2]} 32... Qxf6+ {[%clk 0:00:37.6]} 0-1

[Event "Early-Titled-Tuesday-Blitz-January-23-2024"]
[Site "Chess.com"]
[Date "2024.01.23"]
[Round "8"]
[White "MITerryble"]
[Black "KNVB"]
[Result "1-0"]
[WhiteElo "3002"]
[BlackElo "2754"]
[TimeControl "180+1"]
[EndTime "9:27:14 PST"]
[Termination "MITerryble won on time"]

1. d4 {[%clk 0:03:00]} 1... Nf6 {[%clk 0:02:59.6]} 2. Bg5 {[%clk 0:02:59.8]}
2... e6 {[%clk 0:02:57.2]} 3. e4 {[%clk 0:02:59.8]} 3... h6 {[%clk 0:02:55.7]}
4. Bxf6 {[%clk 0:02:59.9]} 4... Qxf6 {[%clk 0:02:56.4]} 5. c3 {[%clk 0:03:00.4]}
5... d6 {[%clk 0:02:55.8]} 6. Bd3 {[%clk 0:03:00.4]} 6... Nd7 {[%clk 0:02:50.4]}
7. Ne2 {[%clk 0:03:00.7]} 7... g6 {[%clk 0:02:25]} 8. O-O {[%clk 0:02:59.7]}
8... Bg7 {[%clk 0:02:22.2]} 9. f4 {[%clk 0:03:00.3]} 9... Qe7 {[%clk 0:02:21.9]}
10. Nd2 {[%clk 0:02:55.4]} 10... b6 {[%clk 0:02:11.9]} 11. e5 {[%clk 0:02:55.7]}
11... Bb7 {[%clk 0:02:11.8]} 12. Be4 {[%clk 0:02:55.6]} 12... Bxe4 {[%clk
0:01:52.4]} 13. Nxe4 {[%clk 0:02:56.5]} 13... O-O {[%clk 0:01:51.8]} 14. Qa4
{[%clk 0:02:43]} 14... b5 {[%clk 0:00:47.5]} 15. Qa5 {[%clk 0:02:33.9]} 15... d5
{[%clk 0:00:40.6]} 16. Nf2 {[%clk 0:02:27.2]} 16... c5 {[%clk 0:00:40.4]} 17. a4
{[%clk 0:02:20.1]} 17... bxa4 {[%clk 0:00:23.6]} 18. Rxa4 {[%clk 0:02:10.2]}
18... Rfb8 {[%clk 0:00:22.1]} 19. Ra2 {[%clk 0:02:04.7]} 19... Bf8 {[%clk
0:00:20.1]} 20. Nd3 {[%clk 0:02:01.5]} 20... Rb7 {[%clk 0:00:09.3]} 21. Qa6
{[%clk 0:01:27.6]} 21... Rab8 {[%clk 0:00:08.1]} 22. b4 {[%clk 0:01:28.2]} 22...
cxb4 {[%clk 0:00:08]} 23. Nxb4 {[%clk 0:01:28.3]} 23... Qe8 {[%clk 0:00:02]} 24.
Nc6 {[%clk 0:01:24.6]} 24... Rb6 {[%clk 0:00:02.1]} 25. Qa4 {[%clk 0:01:05.2]}
25... Nc5 {[%clk 0:00:02.1]} 26. dxc5 {[%clk 0:00:44.9]} 26... Rxc6 {[%clk
0:00:02.6]} 27. Nd4 {[%clk 0:00:40]} 27... Bxc5 {[%clk 0:00:01.8]} 28. Kh1
{[%clk 0:00:40.6]} 28... Bxd4 {[%clk 0:00:01.9]} 29. cxd4 {[%clk 0:00:40.1]} 1-0